fUST/lending_fUST_20250808
["ID","MTS","AMOUNT","RATE_DAILY","PERIOD"]
[377994123,1754655038012,-460.0,0.00025344,2]
[377994124,1754655038022,-466.92204182,0.00025344,2]
[377994125,1754655038031,-445.37947767,0.00025344,2]
[377994126,1754655038047,-14.62052233,0.00025344,2]
[377994127,1754655038056,-460.0,0.00025344,2]
[377994128,1754655038066,-460.0,0.00025344,2]
[377994129,1754655038076,-460.0,0.00025344,2]
[377994130,1754655038085,-670.70816281,0.00025344,2]
[377994131,1754655038097,-840.99183719,0.00025344,2]
[377994132,1754655038108,-460.0,0.00025345,2]
[377994133,1754655038117,-678.48,0.00025345,2]
[377994134,1754655038127,-783.9,0.00025345,2]
[377994135,1754655038138,-1045.37,0.00025345,2]
[377994136,1754655038150,-151.0,0.00025368,2]
[377994137,1754655038160,-151.0,0.00025368,2]
[377994138,1754655038170,-151.0,0.00025368,2]
[377994139,1754655038179,-151.0,0.00025368,2]
[377994140,1754655038188,-151.0,0.00025368,2]
[377994141,1754655038198,-129.53726371,0.00025373,2]
[377994142,1754655038209,-359.1962722,0.00025373,2]
[377994154,1754655040474,-11.26646409,0.00025373,2]
[377994155,1754655040484,-408.84354833,0.00025373,2]
[377994156,1754655040493,-600.0,0.00025373,2]
[377994157,1754655040503,-500.0,0.00025373,2]
[377994158,1754655040513,-500.0,0.00025373,2]
[377994159,1754655040522,-463.59762003,0.00025373,2]
[377994160,1754655040535,-500.0,0.00025373,2]
[377994161,1754655040546,-168.0,0.00025381,2]
[377994162,1754655040561,-10493.32147855,0.00025382,2]
[377994183,1754655042842,-520.84,0.00024889,2]
[377994185,1754655042852,-168.0,0.00025388,2]
[377994187,1754655042861,-548.56194088,0.00025395,2]
[377994192,1754655042895,-212.72156171,0.00025395,2]
[377994194,1754655042904,-151.0,0.00025407,7]
[377994196,1754655042913,-15.30693829,0.00025436,2]
[377994201,1754655042950,-386.01582005,0.00025436,2]
[377994203,1754655042959,-1306.49,0.00025436,2]
[377994205,1754655042968,-497.88,0.00025436,2]
[377994207,1754655042977,-1215.52,0.00025437,2]
[377994209,1754655042986,-500.0,0.00025437,2]
[377994211,1754655042996,-460.0,0.00025437,2]
[377994213,1754655043005,-460.0,0.00025437,2]
[377994215,1754655043014,-151.0,0.00025489,7]
[377994217,1754655043023,-168.0,0.00025518,2]
[377994219,1754655043033,-536.89,0.00025536,2]
[377994221,1754655043043,-160.0,0.00025554,2]
[377994223,1754655043052,-201.12,0.00025569,10]
[377994225,1754655043062,-151.0,0.00025609,7]
[377994227,1754655043071,-151.0,0.00025609,7]
[377994229,1754655043080,-205.246977,0.00025609,7]
[377994231,1754655043090,-205.246977,0.00025609,7]
[377994233,1754655043099,-536.653913,0.00025609,7]
[377994235,1754655043108,-536.653913,0.00025609,7]
[377994237,1754655043118,-750.250207,0.00025609,7]
[377994239,1754655043127,-460.0,0.00025618,2]
[377994241,1754655043137,-273.353264,0.00025618,2]
[377994243,1754655043146,-600.52,0.00025618,2]
[377994245,1754655043155,-460.0,0.00025618,2]
[377994247,1754655043164,-460.0,0.00025618,2]
[377994249,1754655043174,-460.0,0.00025618,2]
[377994251,1754655043183,-460.0,0.00025618,2]
[377994253,1754655043193,-460.0,0.00025618,2]
[377994255,1754655043202,-1511.7,0.00025618,2]
[377994257,1754655043212,-151.0,0.00025619,7]
[377994259,1754655043221,-151.0,0.00025619,7]
[377994261,1754655043230,-460.0,0.00025619,2]
[377994263,1754655043240,-678.48,0.00025619,2]
[377994265,1754655043249,-783.9,0.00025619,2]
[377994267,1754655043259,-1045.37,0.00025619,2]
[377994269,1754655043268,-151.0,0.00025621,7]
[377994271,1754655043277,-151.0,0.00025621,7]
[377994273,1754655043287,-262.949848,0.00025621,7]
[377994275,1754655043298,-151.0,0.00025621,7]
[377994277,1754655043308,-262.949848,0.00025621,7]
[377994280,1754655043317,-151.0,0.00025621,7]
[377994282,1754655043327,-151.0,0.00025621,7]
[377994284,1754655043336,-151.0,0.00025621,7]
[377994286,1754655043346,-151.0,0.00025621,7]
[377994288,1754655043355,-201.571203,0.00025621,7]
[377994290,1754655043365,-201.571203,0.00025621,7]
[377994292,1754655043374,-761.28350259,0.00025648,2]
[377994294,1754655043383,-259.912016,0.0002565,7]
[377994295,1754655043392,-151.0,0.00025662,7]
[377994297,1754655043401,-151.0,0.00025662,7]
[377994299,1754655043411,-151.0,0.00025662,7]
[377994301,1754655043422,-201.571203,0.00025662,7]
[377994303,1754655043431,-201.571203,0.00025662,7]
[377994305,1754655043440,-1306.49,0.0002571,2]
[377994307,1754655043449,-497.88,0.0002571,2]
[377994309,1754655043458,-500.0,0.00025711,2]
[377994311,1754655043468,-1215.52,0.00025711,2]
[377994313,1754655043477,-460.0,0.00025711,2]
[377994315,1754655043487,-262.949848,0.000258,7]
[377994317,1754655043496,-151.0,0.000258,7]
[377994319,1754655043506,-262.949848,0.000258,7]
[377994321,1754655043515,-191.628738,0.000258,7]
[377994323,1754655043525,-151.0,0.000258,7]
[377994325,1754655043536,-151.0,0.0002581,7]
[377994327,1754655043548,-151.0,0.0002581,7]
[377994329,1754655043561,-151.0,0.0002581,7]
[377994331,1754655043570,-536.89,0.0002581,2]
[377994333,1754655043580,-168.0,0.00025827,2]
[377994335,1754655043589,-460.0,0.00025892,2]
[377994337,1754655043599,-600.52,0.00025892,2]
[377994339,1754655043608,-460.0,0.00025892,2]
[377994341,1754655043618,-460.0,0.00025892,2]
[377994343,1754655043628,-460.0,0.00025892,2]
[377994346,1754655043638,-460.0,0.00025892,2]
[377994348,1754655043648,-1511.7,0.00025892,2]
[377994349,1754655043657,-151.0,0.00025893,7]
[377994352,1754655043667,-151.0,0.00025893,7]
[377994354,1754655043677,-151.0,0.00025893,7]
[377994356,1754655043686,-603.5,0.00025893,2]
[377994358,1754655043696,-678.48,0.00025893,2]
[377994360,1754655043705,-783.9,0.00025893,2]
[377994362,1754655043714,-1045.37,0.00025893,2]
[377994364,1754655043723,-172.15463816,0.000259,2]
[377994366,1754655043732,-151.0,0.000259,18]
[377994368,1754655043742,-761.28350259,0.000259,2]
[377994370,1754655043751,-151.0,0.00025906,7]
[377994372,1754655043761,-1200.0,0.00025921,2]
[377994374,1754655043770,-1000.0,0.00025921,2]
[377994376,1754655043780,-1005.39622159,0.00025921,2]
[377994378,1754655043789,-2149.0,0.00025948,2]
[377994380,1754655043800,-971.0,0.00025948,2]
[377994382,1754655043809,-636.0,0.00025948,2]
[377994384,1754655043819,-500.0,0.00025973,2]
[377994386,1754655043828,-7354.38995774,0.0002598,2]
[377994388,1754655043837,-1306.49,0.00025984,2]
[377994390,1754655043847,-497.88,0.00025984,2]
[377994392,1754655043858,-500.0,0.00025985,2]
[377994394,1754655043867,-1215.52,0.00025985,2]
[377994396,1754655043877,-460.0,0.00025985,2]
[377994398,1754655043886,-255.0,0.00025986,2]
[377994400,1754655043895,-500.0,0.00025989,2]
[377994402,1754655043904,-492.43767244,0.00025989,2]
[377994404,1754655043914,-279.51989389,0.0002599,2]
[377994406,1754655043923,-151.0,0.0002599,7]
[377994408,1754655043932,-629687.302263,0.0002599,2]
[377994410,1754655043942,-1050.62713682,0.0002599,2]
[377994412,1754655043951,-100000.0,0.00026,7]
[377994414,1754655043961,-246.51995,0.00026,7]
[377994416,1754655043971,-151.0,0.00026,7]
[377994418,1754655043980,-151.0,0.00026,7]
[377994420,1754655043989,-151.0,0.00026,7]
[377994422,1754655043999,-151.0,0.00026,7]
[377994424,1754655044008,-151.0,0.00026,7]
[377994426,1754655044019,-151.0,0.00026,7]
[377994428,1754655044027,-151.0,0.00026,7]
[377994430,1754655044037,-262.949848,0.00026,7]
[377994432,1754655044047,-262.949848,0.00026,7]
[377994434,1754655044057,-151.0,0.00026,7]
[377994436,1754655044066,-151.0,0.00026,7]
[377994438,1754655044076,-151.0,0.00026,7]
[377994440,1754655044085,-151.0,0.00026,7]
[377994442,1754655044095,-205.246977,0.00026,7]
[377994444,1754655044104,-205.246977,0.00026,7]
[377994446,1754655044113,-536.653913,0.00026,7]
[377994448,1754655044122,-536.653913,0.00026,7]
[377994450,1754655044131,-151.0,0.00026,7]
[377994452,1754655044140,-842.78739015,0.00026,7]
[377994454,1754655044149,-151.0,0.00026,7]
[377994456,1754655044159,-201.571203,0.00026,7]
[377994458,1754655044168,-201.571203,0.00026,7]
[377994460,1754655044177,-160.0,0.00026,7]
[377994462,1754655044186,-750.250207,0.00026,7]
[377994464,1754655044196,-160.0,0.00026008,2]
[377994466,1754655044205,-200.0,0.0002608,15]
[377994468,1754655044214,-536.89,0.00026084,2]
[377994470,1754655044224,-151.436792,0.00026154,3]
[377994472,1754655044233,-575.62990744,0.00026166,2]
[377994474,1754655044242,-600.52,0.00026166,2]
[377994476,1754655044251,-460.0,0.00026166,2]
[377994478,1754655044260,-460.0,0.00026166,2]
[377994492,1754655044387,-460.0,0.00026166,2]
[377994494,1754655044398,-460.0,0.00026166,2]
[377994496,1754655044407,-1511.7,0.00026166,2]
[377994499,1754655044417,-678.48,0.00026167,2]
[377994501,1754655044426,-783.9,0.00026167,2]
[377994503,1754655044436,-1045.37,0.00026167,2]
[377994504,1754655044445,-813.632,0.00026189,2]
[377994506,1754655044455,-2200.0,0.00026199,2]
[377994508,1754655044464,-151.436792,0.00026237,7]
[377994510,1754655044473,-1306.49,0.00026258,2]
[377994513,1754655044483,-497.88,0.00026258,2]
[377994515,1754655044492,-321.91874184,0.00026259,2]
[377994517,1754655044501,-1215.52,0.00026259,2]
[377994519,1754655044511,-460.0,0.00026259,2]
[377994521,1754655044520,-151.436792,0.00026273,2]
[377994523,1754655044531,-168.0,0.00026293,2]
[377994525,1754655044540,-536.89,0.00026358,2]
[377994526,1754655044551,-168.0,0.0002636,2]
[377994528,1754655044563,-168.0,0.00026373,2]
[377994530,1754655044572,-168.0,0.00026437,2]
[377994533,1754655044582,-600.52,0.0002644,2]
[377994534,1754655044593,-460.0,0.0002644,2]
[377994537,1754655044603,-460.0,0.0002644,2]
[377994538,1754655044612,-460.0,0.0002644,2]
[377994540,1754655044621,-460.0,0.0002644,2]
[377994542,1754655044630,-1511.7,0.0002644,2]
[377994545,1754655044641,-678.48,0.00026441,2]
[377994547,1754655044651,-783.9,0.00026441,2]
[377994549,1754655044660,-1045.37,0.00026441,2]
[377994551,1754655044669,-525.31356841,0.00026458,2]
[377994553,1754655044678,-1800.0,0.00026468,2]
[377994555,1754655044688,-1500.0,0.00026468,2]
[377994557,1754655044697,-1000.0,0.00026521,2]
[377994559,1754655044706,-1306.49,0.00026532,2]
[377994561,1754655044716,-497.88,0.00026532,2]
[377994563,1754655044726,-1215.52,0.00026533,2]
[377994565,1754655044735,-460.0,0.00026533,2]
[377994567,1754655044744,-150.0,0.00026551,2]
[377994569,1754655044753,-260.0,0.00026556,2]
[377994571,1754655044763,-200.0,0.000266,15]
[377994573,1754655044773,-300.0,0.000266,15]
[377994575,1754655044782,-536.89,0.00026632,2]
[377994577,1754655044791,-168.0,0.00026649,2]
[377994579,1754655044800,-151.0,0.00026649,7]
[377994581,1754655044810,-7563.09753965,0.000267,2]
[377994583,1754655044819,-151.0,0.000267,7]
[377994585,1754655044828,-262.949848,0.000267,7]
[377994587,1754655044838,-262.949848,0.000267,7]
[377994589,1754655044848,-151.0,0.000267,7]
[377994591,1754655044857,-151.0,0.000267,7]
[377994593,1754655044867,-151.0,0.000267,7]
[377994595,1754655044877,-205.246977,0.000267,7]
[377994597,1754655044886,-205.246977,0.000267,7]
[377994599,1754655044896,-536.653913,0.000267,7]
[377994601,1754655044906,-536.653913,0.000267,7]
[377994603,1754655044915,-244.423038,0.000267,7]
[377994605,1754655044924,-151.0,0.000267,7]
[377994607,1754655044933,-201.571203,0.000267,7]
[377994609,1754655044943,-201.571203,0.000267,7]
[377994611,1754655044952,-750.250207,0.000267,7]
[377994613,1754655044961,-151.0,0.00026713,7]
[377994615,1754655044971,-151.0,0.00026713,7]
[377994617,1754655044980,-600.52,0.00026714,2]
[377994619,1754655044989,-460.0,0.00026714,2]
[377994621,1754655044999,-460.0,0.00026714,2]
[377994623,1754655045008,-460.0,0.00026714,2]
[377994625,1754655045018,-460.0,0.00026714,2]
[377994627,1754655045027,-1511.7,0.00026714,2]
[377994629,1754655045037,-151.0,0.00026715,7]
[377994631,1754655045046,-151.0,0.00026715,7]
[377994633,1754655045056,-255.186038,0.00026715,7]
[377994635,1754655045065,-678.48,0.00026715,2]
[377994637,1754655045075,-783.9,0.00026715,2]
[377994639,1754655045084,-1045.37,0.00026715,2]
[377994641,1754655045092,-151.0,0.00026716,7]
[377994643,1754655045102,-500.0,0.0002675,2]
[377994645,1754655045111,-1306.49,0.00026806,2]
[377994646,1754655045121,-497.88,0.00026806,2]
[377994648,1754655045130,-1215.52,0.00026807,2]
[377994650,1754655045140,-361.08371113,0.00026807,2]
[377994653,1754655045149,-150.0,0.0002686,2]
[377994655,1754655045158,-420.0,0.00026868,2]
[377994656,1754655045167,-536.89,0.00026906,2]
[377994658,1754655045177,-600.52,0.00026988,2]
[377994662,1754655045186,-460.0,0.00026988,2]
[377994664,1754655045196,-460.0,0.00026988,2]
[377994666,1754655045205,-460.0,0.00026988,2]
[377994668,1754655045214,-460.0,0.00026988,2]
[377994670,1754655045224,-1511.7,0.00026988,2]
[377994672,1754655045233,-678.48,0.00026989,2]
[377994674,1754655045243,-783.9,0.00026989,2]
[377994676,1754655045252,-1045.37,0.00026989,2]
[377994678,1754655045262,-1000.0,0.00027,2]
[377994681,1754655045272,-2400.0,0.00027016,2]
[377994683,1754655045281,-504.19123616,0.00027016,2]
[377994685,1754655045293,-1500.0,0.00027068,2]
[377994687,1754655045302,-525.31356841,0.0002707,2]
[377994689,1754655045311,-1306.49,0.0002708,2]
[377994690,1754655045320,-497.88,0.0002708,2]
[377994692,1754655045330,-1215.52,0.00027081,2]
[377994695,1754655045340,-645.0,0.000271,2]
[377994696,1754655045350,-360.0,0.00027104,2]
[377994698,1754655045359,-536.89,0.0002718,2]
[377994701,1754655045369,-151.436792,0.00027196,3]
[377994703,1754655045379,-151.436792,0.00027204,7]
[377994704,1754655045388,-151.436792,0.00027258,2]
[377994705,1754655045398,-600.52,0.00027262,2]
[377994706,1754655045407,-460.0,0.00027262,2]
[377994707,1754655045417,-460.0,0.00027262,2]
[377994708,1754655045426,-460.0,0.00027262,2]
[377994709,1754655045436,-460.0,0.00027262,2]
[377994710,1754655045446,-1511.7,0.00027262,2]
[377994711,1754655045455,-151.0,0.00027263,7]
[377994712,1754655045465,-678.48,0.00027263,2]
[377994713,1754655045474,-783.9,0.00027263,2]
[377994714,1754655045484,-1045.37,0.00027263,2]
[377994715,1754655045493,-1000.0,0.00027298,2]
[377994716,1754655045503,-168.0,0.00027317,2]
[377994717,1754655045512,-262.949848,0.00027317,7]
[377994718,1754655045521,-262.949848,0.00027317,7]
[377994719,1754655045532,-1306.49,0.00027354,2]
[377994720,1754655045544,-497.88,0.00027354,2]
[377994721,1754655045555,-1215.52,0.00027355,2]
[377994722,1754655045565,-151.0,0.00027397,7]
[377994723,1754655045575,-6991.5,0.00027397,2]
[377994724,1754655045585,-500.0,0.00027397,5]
[377994725,1754655045595,-151.0,0.00027406,7]
[377994726,1754655045607,-250.0,0.00027408,5]
[377994727,1754655045617,-278.15782,0.00027426,7]
[377994728,1754655045627,-205.246977,0.00027426,7]
[377994729,1754655045637,-205.246977,0.00027426,7]
[377994730,1754655045647,-536.653913,0.00027426,7]
[377994731,1754655045656,-536.653913,0.00027426,7]
[377994732,1754655045666,-536.89,0.00027454,2]
[377994733,1754655045675,-1477.69862104,0.000275,4]
[377994734,1754655045684,-151.0,0.000275,7]
[377994735,1754655045694,-500.0,0.00027536,2]
[377994736,1754655045703,-500.0,0.00027536,2]
[377994737,1754655045713,-500.0,0.00027536,2]
[377994738,1754655045722,-151.0,0.00027536,7]
[377994739,1754655045731,-151.0,0.00027536,7]
[377994740,1754655045741,-600.52,0.00027536,2]
[377994741,1754655045751,-460.0,0.00027536,2]
[377994742,1754655045761,-460.0,0.00027536,2]
[377994743,1754655045770,-460.0,0.00027536,2]
[377994744,1754655045779,-460.0,0.00027536,2]
[377994745,1754655045789,-1511.7,0.00027536,2]
[377994746,1754655045800,-201.571203,0.00027536,7]
[377994747,1754655045809,-201.571203,0.00027536,7]
[377994748,1754655045819,-151.0,0.00027537,7]
[377994749,1754655045828,-151.0,0.00027537,7]
[377994750,1754655045837,-678.48,0.00027537,2]
[377994751,1754655045847,-783.9,0.00027537,2]
[377994752,1754655045857,-1045.37,0.00027537,2]
[377994753,1754655045866,-2200.0,0.00027564,5]
[377994754,1754655045876,-174.64199501,0.00027616,5]
[377994755,1754655045886,-1306.49,0.00027628,2]
[377994756,1754655045895,-497.88,0.00027628,2]
[377994757,1754655045905,-1215.52,0.00027629,2]
[377994758,1754655045914,-460.0,0.00027652,2]
[377994759,1754655045924,-525.31356841,0.00027718,2]
[377994760,1754655045935,-536.89,0.00027728,2]
[377994761,1754655045944,-160.0,0.00027731,2]
[377994762,1754655045954,-842.78739015,0.00027735,2]
[377994763,1754655045964,-461.45099301,0.00027737,2]
[377994764,1754655045973,-160.0,0.00027737,2]
[377994765,1754655045983,-600.52,0.0002781,2]
[377994766,1754655045993,-460.0,0.0002781,2]
[377994767,1754655046002,-460.0,0.0002781,2]
[377994768,1754655046012,-460.0,0.0002781,2]
[377994769,1754655046022,-460.0,0.0002781,2]
[377994770,1754655046032,-1511.7,0.0002781,2]
[377994772,1754655046043,-151.0,0.00027811,7]
[377994774,1754655046052,-678.48,0.00027811,2]
[377994775,1754655046061,-783.9,0.00027811,2]
[377994776,1754655046070,-1045.37,0.00027811,2]
[377994777,1754655046079,-1162.13604943,0.00027846,2]
[377994778,1754655046088,-1306.49,0.00027902,2]
[377994779,1754655046098,-497.88,0.00027902,2]
[377994781,1754655046107,-1215.52,0.00027903,2]
[377994782,1754655046116,-168.0,0.00027934,2]
[377994783,1754655046126,-350.0,0.00027956,5]
[377994784,1754655046135,-500.0,0.00027973,5]
[377994785,1754655046144,-300.0,0.00027973,5]
[377994786,1754655046153,-150.0,0.00027973,3]
[377994787,1754655046162,-500.0,0.00027973,5]
[377994788,1754655046171,-500.0,0.00027973,5]
[377994789,1754655046180,-573.52765742,0.00027973,5]
[377994790,1754655046189,-500.0,0.00027973,5]
[377994791,1754655046199,-500.0,0.00027973,5]
[377994792,1754655046208,-500.0,0.00027973,5]
[377994793,1754655046218,-500.0,0.00027973,5]
[377994794,1754655046227,-500.0,0.00027973,5]
[377994795,1754655046236,-500.0,0.00027973,5]
[377994796,1754655046245,-500.0,0.00027973,5]
[377994797,1754655046254,-500.0,0.00027973,2]
[377994798,1754655046264,-500.0,0.00027973,5]
[377994799,1754655046273,-524.82747729,0.00027973,5]
[377994800,1754655046282,-500.0,0.00027973,5]
[377994801,1754655046292,-500.0,0.00027973,5]
[377994802,1754655046302,-525.31356841,0.0002799,2]
[377994803,1754655046312,-3930.99,0.00028,7]
[377994804,1754655046321,-30246.94,0.00028,7]
[377994805,1754655046330,-8466.13,0.00028,7]
[377994806,1754655046339,-17166.12,0.00028,2]
[377994807,1754655046350,-151.0,0.00028,7]
[377994808,1754655046360,-151.0,0.00028,7]
[377994809,1754655046370,-151.0,0.00028,7]
[377994810,1754655046379,-151.0,0.00028,7]
[377994811,1754655046389,-151.0,0.00028,7]
[377994812,1754655046398,-151.0,0.00028,7]
[377994813,1754655046408,-262.949848,0.00028,7]
[377994814,1754655046417,-262.949848,0.00028,7]
[377994815,1754655046427,-262.949848,0.00028,7]
[377994816,1754655046436,-262.949848,0.00028,7]
[377994817,1754655046446,-151.0,0.00028,7]
[377994818,1754655046455,-151.0,0.00028,7]
[377994819,1754655046464,-215.869112,0.00028,7]
[377994820,1754655046474,-177.240783,0.00028,7]
[377994821,1754655046483,-205.246977,0.00028,7]
[377994822,1754655046493,-205.246977,0.00028,7]
[377994823,1754655046503,-536.653913,0.00028,7]
[377994824,1754655046512,-536.653913,0.00028,7]
[377994825,1754655046521,-312.16666667,0.00028,3]
[377994826,1754655046533,-527.68033864,0.00028,3]
[377994827,1754655046546,-151.0,0.00028,7]
[377994828,1754655046558,-201.571203,0.00028,7]
[377994829,1754655046567,-201.571203,0.00028,7]
[377994830,1754655046577,-536.89,0.00028002,2]
[377994831,1754655046587,-151.436792,0.00028038,10]
[377994832,1754655046597,-151.436792,0.00028069,10]
[377994833,1754655046607,-600.52,0.00028084,2]
[377994834,1754655046617,-460.0,0.00028084,2]
[377994835,1754655046626,-460.0,0.00028084,2]
[377994836,1754655046637,-460.0,0.00028084,2]
[377994837,1754655046646,-460.0,0.00028084,2]
[377994838,1754655046656,-1511.7,0.00028084,2]
[377994839,1754655046665,-678.48,0.00028085,2]
[377994840,1754655046674,-783.9,0.00028085,2]
[377994841,1754655046684,-1045.37,0.00028085,2]
[377994842,1754655046693,-151.436792,0.000281,10]
[377994843,1754655046702,-1439.322417,0.000281,7]
[377994844,1754655046711,-151.0,0.00028154,7]
[377994845,1754655046721,-151.0,0.00028154,7]
[377994846,1754655046730,-151.0,0.00028164,7]
[377994847,1754655046740,-205.246977,0.00028164,7]
[377994848,1754655046749,-205.246977,0.00028164,7]
[377994849,1754655046758,-536.653913,0.00028164,7]
[377994850,1754655046767,-536.653913,0.00028164,7]
[377994851,1754655046776,-151.436792,0.0002817,7]
[377994852,1754655046785,-1306.49,0.00028176,2]
[377994853,1754655046798,-497.88,0.00028176,2]
[377994854,1754655046807,-1215.52,0.00028177,2]
[377994855,1754655046816,-560.0,0.00028199,2]
[377994856,1754655046825,-151.436792,0.00028235,5]
[377994857,1754655046835,-151.436792,0.00028238,3]
[377994858,1754655046844,-151.436792,0.00028242,2]
[377994859,1754655046853,-201.571203,0.00028253,7]
[377994860,1754655046863,-201.571203,0.00028253,7]
[377994861,1754655046872,-151.436792,0.00028255,5]
[377994862,1754655046881,-151.436792,0.00028275,5]
[377994863,1754655046890,-536.89,0.00028276,2]
[377994864,1754655046899,-151.436792,0.00028296,5]
[377994865,1754655046908,-600.52,0.00028358,2]
[377994866,1754655046917,-460.0,0.00028358,2]
[377994867,1754655046926,-460.0,0.00028358,2]
[377994868,1754655046935,-460.0,0.00028358,2]
[377994869,1754655046944,-460.0,0.00028358,2]
[377994870,1754655046954,-1511.7,0.00028358,2]
[377994871,1754655046964,-151.0,0.00028359,7]
[377994872,1754655046974,-262.949848,0.00028359,7]
[377994873,1754655046983,-262.949848,0.00028359,7]
[377994874,1754655046992,-678.48,0.00028359,2]
[377994875,1754655047002,-169.176494,0.00028359,7]
[377994876,1754655047011,-783.9,0.00028359,2]
[377994877,1754655047020,-1045.37,0.00028359,2]
[377994878,1754655047030,-1705.90834752,0.00028421,2]
[377994879,1754655047039,-1306.49,0.0002845,2]
[377994880,1754655047050,-497.88,0.0002845,2]
[377994881,1754655047060,-1215.52,0.00028451,2]
[377994882,1754655047070,-151.436792,0.00028501,30]
[377994883,1754655047079,-207.09737482,0.00028504,5]
[377994884,1754655047088,-276.51859943,0.00028521,5]
[377994885,1754655047098,-600.0,0.00028521,5]
[377994886,1754655047107,-500.0,0.00028521,5]
[377994887,1754655047117,-500.0,0.00028521,5]
[377994888,1754655047126,-1000.0,0.00028521,5]
[377994889,1754655047135,-1004.29023985,0.00028521,5]
[377994890,1754655047145,-1147.39265393,0.00028521,2]
[377994891,1754655047154,-160.74211903,0.00028521,5]
[377994892,1754655047163,-500.0,0.00028521,5]
[377994893,1754655047172,-168.0,0.00028526,2]
[377994894,1754655047182,-168.0,0.0002854,2]
[377994895,1754655047191,-536.89,0.0002855,2]
[377994896,1754655047201,-168.0,0.00028553,2]
[377994897,1754655047210,-1000.0,0.000286,7]
[377994898,1754655047219,-500.0,0.00028617,10]
[377994899,1754655047228,-600.52,0.00028632,2]
[377994900,1754655047238,-460.0,0.00028632,2]
[377994901,1754655047247,-337.98,0.00028632,2]
[377994902,1754655047257,-460.0,0.00028632,2]
[377994903,1754655047267,-460.0,0.00028632,2]
[377994904,1754655047277,-1511.7,0.00028632,2]
[377994905,1754655047287,-151.0,0.00028633,7]
[377994906,1754655047298,-678.48,0.00028633,2]
[377994907,1754655047307,-783.9,0.00028633,2]
[377994908,1754655047316,-1045.37,0.00028633,2]
[377994909,1754655047326,-700.0,0.00028643,7]
[377994910,1754655047335,-151.436792,0.00028681,30]
[377994911,1754655047344,-1306.49,0.00028724,2]
[377994912,1754655047354,-497.88,0.00028724,2]
[377994913,1754655047472,-1215.52,0.00028725,2]
[377994914,1754655047483,-660.0,0.00028747,2]
[377994915,1754655047492,-168.0,0.00028794,2]
[377994916,1754655047501,-536.89,0.00028824,2]
[377994917,1754655047510,-151.436792,0.0002886,30]
[377994918,1754655047519,-600.52,0.00028906,2]
[377994919,1754655047529,-553.50280124,0.00028906,2]
[377994920,1754655047539,-460.0,0.00028906,2]
[377994921,1754655047550,-407.01,0.00028906,2]
[377994922,1754655047566,-1511.7,0.00028906,2]
[377994923,1754655047575,-151.0,0.00028907,7]
[377994924,1754655047584,-678.48,0.00028907,2]
[377994925,1754655047594,-783.9,0.00028907,2]
[377994926,1754655047603,-1045.37,0.00028907,2]
[377994927,1754655047613,-2149.0,0.00028948,2]